fUSD/lending_fUSD_20250202
["ID","MTS","AMOUNT","RATE_DAILY","PERIOD"]
[351264627,1738498243814,-518.34804438,0.00015873,2]
[351264628,1738498243824,-150.0,0.0001589,2]
[351264629,1738498243979,-1000.0,0.0001589,7]
[351264630,1738498244017,-150.0,0.0001589,2]
[351264631,1738498244028,-150.0,0.0001589,2]
[351264632,1738498244038,-150.0,0.0001589,2]
[351264633,1738498244047,-364.41369004,0.0001589,2]
[351264634,1738498244057,-1000.0,0.0001589,2]
[351264635,1738498244066,-1000.0,0.0001589,2]
[351264636,1738498244075,-1000.0,0.0001589,2]
[351264637,1738498244087,-1000.0,0.0001589,2]
[351264638,1738498244096,-1000.0,0.0001589,2]
[351264639,1738498244106,-1000.0,0.0001589,2]
[351264640,1738498244115,-1000.0,0.0001589,2]
[351264641,1738498244127,-1000.0,0.0001589,2]
[351264642,1738498244136,-1000.0,0.0001589,2]
[351264643,1738498244145,-1000.0,0.0001589,2]
[351264644,1738498244155,-1000.0,0.0001589,2]
[351264645,1738498244165,-1000.0,0.0001589,2]
[351264646,1738498244174,-1000.0,0.0001589,2]
[351264647,1738498244184,-1000.0,0.0001589,2]
[351264648,1738498244194,-1000.0,0.0001589,2]
[351264649,1738498244203,-1000.0,0.0001589,2]
[351264650,1738498244213,-1000.0,0.0001589,2]
[351264651,1738498244223,-1000.0,0.0001589,2]
[351264652,1738498244232,-1000.0,0.0001589,2]
[351264653,1738498244242,-1000.0,0.0001589,2]
[351264654,1738498244252,-1000.0,0.0001589,2]
[351264655,1738498244263,-1000.0,0.0001589,2]
[351264656,1738498244272,-1000.0,0.0001589,2]
[351264657,1738498244281,-1000.0,0.0001589,2]
[351264658,1738498244293,-1000.0,0.0001589,2]
[351264659,1738498244302,-1000.0,0.0001589,2]
[351264660,1738498244311,-1000.0,0.0001589,2]
[351264661,1738498244321,-1000.0,0.0001589,2]
[351264662,1738498244332,-1000.0,0.0001589,2]
[351264663,1738498244341,-1000.0,0.0001589,2]
[351264664,1738498244351,-1000.0,0.0001589,2]
[351264665,1738498244361,-1000.0,0.0001589,2]
[351264666,1738498244371,-1000.0,0.0001589,2]
[351264667,1738498244379,-1000.0,0.0001589,2]
[351264668,1738498244389,-1000.0,0.0001589,2]
[351264669,1738498244398,-1000.0,0.0001589,2]
[351264670,1738498244407,-1000.0,0.0001589,2]
[351264671,1738498244417,-1000.0,0.0001589,2]
[351264672,1738498244426,-1000.0,0.0001589,2]
[351264673,1738498244435,-1000.0,0.0001589,2]
[351264674,1738498244444,-1000.0,0.0001589,2]
[351264675,1738498244453,-1000.0,0.0001589,2]
[351264676,1738498244463,-1000.0,0.0001589,2]
[351264677,1738498244472,-1000.0,0.0001589,2]
[351264678,1738498244482,-1000.0,0.0001589,2]
[351264679,1738498244491,-1000.0,0.0001589,2]
[351264680,1738498244500,-1000.0,0.0001589,2]
[351264681,1738498244510,-1000.0,0.0001589,2]
[351264682,1738498244519,-1000.0,0.0001589,2]
[351264683,1738498244529,-1000.0,0.0001589,2]
[351264684,1738498244538,-1000.0,0.0001589,2]
[351264685,1738498244548,-1000.0,0.0001589,2]
[351264686,1738498244558,-1000.0,0.0001589,2]
[351264687,1738498244568,-1000.0,0.0001589,2]
[351264688,1738498244577,-1000.0,0.0001589,2]
[351264689,1738498244587,-1000.0,0.0001589,2]
[351264690,1738498244597,-1000.0,0.0001589,2]
[351264691,1738498244606,-1000.0,0.0001589,2]
[351264692,1738498244615,-1000.0,0.0001589,2]
[351264693,1738498244625,-1000.0,0.0001589,2]
[351264694,1738498244635,-1000.0,0.0001589,2]
[351264695,1738498244645,-1000.0,0.0001589,2]
[351264696,1738498244654,-1000.0,0.0001589,2]
[351264697,1738498244664,-1000.0,0.0001589,2]
[351264698,1738498244673,-1000.0,0.0001589,2]
[351264699,1738498244683,-1000.0,0.0001589,2]
[351264700,1738498244692,-1000.0,0.0001589,2]
[351264701,1738498244701,-1000.0,0.0001589,2]
[351264702,1738498244710,-1000.0,0.0001589,2]
[351264703,1738498244719,-1000.0,0.0001589,2]
[351264704,1738498244729,-1000.0,0.0001589,2]
[351264705,1738498244739,-1000.0,0.0001589,2]
[351264706,1738498244748,-1000.0,0.0001589,2]
[351264707,1738498244757,-1000.0,0.0001589,2]
[351264708,1738498244766,-1000.0,0.0001589,2]
[351264709,1738498244777,-1000.0,0.0001589,2]
[351264710,1738498244786,-1000.0,0.0001589,2]
[351264711,1738498244795,-1000.0,0.0001589,2]
[351264712,1738498244804,-1000.0,0.0001589,2]
[351264713,1738498244813,-1000.0,0.0001589,2]
[351264714,1738498244822,-1000.0,0.0001589,2]
[351264715,1738498244834,-1000.0,0.0001589,2]
[351264716,1738498244844,-1000.0,0.0001589,2]
[351264717,1738498244853,-1000.0,0.0001589,2]
[351264718,1738498244862,-1000.0,0.0001589,2]
[351264719,1738498244871,-1000.0,0.0001589,2]
[351264720,1738498244880,-1000.0,0.0001589,2]
[351264721,1738498244890,-1000.0,0.0001589,2]
[351264722,1738498244899,-706.0,0.0001589,2]
[351264723,1738498244908,-879.0,0.0001589,2]
[351264724,1738498244917,-8609.30694254,0.00015892,2]
[351264725,1738498244930,-1530.55,0.00015892,2]
[351264726,1738498245024,-4985.95381899,0.00015892,2]
[351264761,1738498246310,-714.87917123,0.00012322,2]
[351264762,1738498246319,-291.72409152,0.00015801,2]
[351264763,1738498246328,-4585.78928774,0.00015892,2]
[351264783,1738498260001,21675.97468994,0.0002,120]
[351264784,1738498267672,155.11,0.00016658,30]
[351264785,1738498385979,2000.0,0.00023,120]
[351264786,1738498389253,500.0,0.00022185,120]
[351264787,1738498395668,500.0,0.00022999,120]
[351264788,1738498402420,200.0,0.00022513,120]
[351264789,1738498411026,150.0,0.00022591,120]
[351264791,1738498481855,1241.2606352,0.00023,120]
[351264793,1738498530779,150.0,0.0002217,120]
[351264796,1738498991168,500.0,0.00022931,120]
[351264797,1738498996658,500.0,0.00022063,120]
[351264798,1738499003098,200.0,0.00022999,120]
[351264799,1738499010758,150.0,0.00022441,120]
[351264800,1738499120372,2422.83255452,9e-05,2]
[351264801,1738499120406,155.11,0.00016658,30]
[351264802,1738499130736,150.0,0.00021675,120]
[351264803,1738499133066,196.03731391,0.0002,120]
[351264804,1738499137537,15992.88134444,8e-05,2]
[351264810,1738499145302,285.10348818,0.00022,120]
[351264811,1738499156314,24914.69311775,6.94e-05,2]
[351264812,1738499168753,9021.50431063,8e-05,2]
[351264813,1738499190887,150.0,0.0002111,120]
[351264814,1738499222311,500.72879421,0.00023,120]
[351264815,1738499233774,1287.75103806,0.00023,120]
[351264816,1738499250826,150.0,0.00022182,120]
[351264817,1738499273698,383.88540634,0.0002,120]
[351264823,1738499326104,202.0,0.0002,120]
[351264824,1738499328868,800.0,0.00021,120]
[351264825,1738499330294,420.85827039,0.00022,120]
[351264826,1738499330328,195.78,0.0002,120]
[351264827,1738499330365,468.80542814,0.00022,120]
[351264828,1738499336263,-2210.247046,9.95e-05,2]
[351264829,1738499336287,-1445.09239304,0.0001,2]
[351264830,1738499336309,-22269.39429228,0.0001,2]
[351264831,1738499336333,-24075.26626868,0.0001,2]
[351264838,1738499346276,-300.0,9.999e-05,2]
[351264839,1738499346301,-49700.0,0.0001,2]
[351264843,1738499377190,22099.0,9.9e-05,2]
[351264847,1738499430729,150.0,0.00022809,120]
[351264862,1738499432167,-300.0,9.999e-05,2]
[351264863,1738499432178,-150.0,9.999e-05,2]
[351264864,1738499432188,-242921.41003326,0.0001,2]
[351264865,1738499432241,-1000.398,0.0001,2]
[351264866,1738499432254,-265.79553,0.0001,2]
[351264867,1738499432348,-284.99400455,0.0001,2]
[351264868,1738499432360,-1103.55713475,0.0001,2]
[351264869,1738499432372,-1197.584209,0.0001,2]
[351264870,1738499432384,-9895.0,0.0001,2]
[351264871,1738499432411,-306.05575,0.0001,2]
[351264872,1738499432469,-310.05771303,0.0001,2]
[351264874,1738499432529,-3165.50000002,0.0001,2]
[351264876,1738499432541,-71039.48882349,0.0001,2]
[351264897,1738499438101,-50760.14999997,0.0001,2]
[351264898,1738499438162,-2067.21978566,0.0001,2]
[351264899,1738499438173,-2713.1376309,0.0001,2]
[351264900,1738499438243,-19450.0,0.0001,2]
[351264901,1738499438254,-6910.2,0.0001,2]
[351264902,1738499438265,-19769.4,0.0001,2]
[351264903,1738499438276,-21654.80627898,0.0001,2]
[351264904,1738499438334,-345.31,0.0001,2]
[351264905,1738499438347,-8761.52160548,0.0001,2]
[351264906,1738499438358,-404.33006656,0.0001,2]
[351264907,1738499438369,-4102.02330003,0.0001,2]
[351264908,1738499438380,-9774.94543347,0.0001,2]
[351264909,1738499438418,-1317.839,0.0001,2]
[351264911,1738499438461,-1264.43557993,0.0001,2]
[351264917,1738499440216,-2240.91721747,0.0001,2]
[351264918,1738499440274,-722.19529931,0.0001,2]
[351264919,1738499440286,-880.88012,0.0001,2]
[351264920,1738499440297,-991.11828,0.0001,2]
[351264921,1738499440308,-31408.84759222,0.0001,2]
[351264922,1738499440319,-570.73588145,0.0001,2]
[351264923,1738499440365,-43590.43664327,0.0001,2]
[351264924,1738499440468,-122314.38459109,0.0001,2]
[351264925,1738499440479,-3294.72581339,0.0001,2]
[351264926,1738499440522,-1155.94890127,0.0001,2]
[351264927,1738499440533,-2063.0,0.0001,2]
[351264928,1738499440544,-49608.15757238,0.0001,2]
[351264929,1738499440555,-36070.0458236,0.0001,2]
[351264930,1738499440566,-1649.538,0.0001,2]
[351264931,1738499440579,-258.7289783,0.0001,2]
[351264932,1738499440590,-564.58482401,0.0001,2]
[351264933,1738499440601,-2156.03251395,0.0001,2]
[351264934,1738499440612,-304.33735203,0.0001,2]
[351264935,1738499440623,-1471007.02616172,0.0001,2]
[351264936,1738499440632,-5670.70415835,0.00010037,2]
[351264937,1738499440641,-300.99643353,0.00010037,2]
[351264938,1738499440650,-2479.88904761,0.00010037,2]
[351264939,1738499440659,-192.82,0.00010137,2]
[351264940,1738499440672,-583.74,0.00010137,2]
[351264941,1738499440680,-175.85347849,0.000109,2]
[351264942,1738499440690,-420.0,0.00010999,2]
[351264945,1738499440699,-150.0,0.00011,2]
[351264947,1738499440711,-1840.38,0.00011097,2]
[351264948,1738499440720,-828.09771965,0.00011099,2]
[351264949,1738499440729,-828.09771958,0.00011099,2]
[351264950,1738499440738,-828.09771958,0.00011099,2]
[351264951,1738499440748,-828.09771958,0.00011099,2]
[351264952,1738499440758,-828.09771958,0.00011099,2]
[351264953,1738499440767,-828.09771958,0.00011099,2]
[351264954,1738499440777,-150.0,0.00011151,2]
[351264955,1738499440786,-828.09771958,0.00011312,2]
[351264956,1738499440795,-168.3,0.00011335,2]
[351264957,1738499440804,-1000.0,0.000115,4]
[351264958,1738499440814,-828.09771958,0.00011541,2]
[351264959,1738499440824,-2000.0,0.000116,4]
[351264960,1738499440836,-142494.78639291,0.00011688,2]
[351264961,1738499440845,-1314.7618,0.000117,2]
[351264962,1738499440854,-3000.0,0.000117,4]
[351264963,1738499440863,-828.09771958,0.0001177,2]
[351264964,1738499440872,-4000.0,0.000118,4]
[351264965,1738499440881,-5100.0,0.000119,4]
[351264966,1738499440891,-194.4827277,0.000119,2]
[351264967,1738499440900,-189.15179354,0.000119,2]
[351264968,1738499440910,-151.14626663,0.00011973,2]
[351264969,1738499440919,-300.9964335,0.00011991,2]
[351264970,1738499440928,-300.0,0.00011999,2]
[351264971,1738499440938,-828.09771958,0.00011999,2]
[351264972,1738499440947,-851.71992707,0.00012,2]
[351264973,1738499440955,-1351853.69150301,0.00012,2]
[351264974,1738499441003,-1323.0,0.00012,2]
[351264975,1738499441014,-1695.03854347,0.00012,2]
[351264976,1738499441026,-644.79999986,0.00012,2]
[351264977,1738499441038,-472.86339972,0.00012,2]
[351264978,1738499441049,-345.16037055,0.00012,2]
[351264979,1738499441070,-844.0,0.00012,2]
[351264980,1738499441082,-774.999996,0.00012,2]
[351264981,1738499441094,-1004.755,0.00012,2]
[351264982,1738499441105,-668.622,0.00012,2]
[351264984,1738499443254,-771.27512384,0.00012,2]
[351264985,1738499443312,-4415.71371553,0.00012,2]
[351264986,1738499443380,-21533.27470492,0.00012,2]
[351264987,1738499443391,-10377.31968114,0.00012,2]
[351264988,1738499443403,-1469.6840553,0.00012,2]
[351264989,1738499443415,-1201.98778846,0.00012,2]
[351264990,1738499443426,-4163.72940921,0.00012,2]
[351264991,1738499443437,-1535.90431634,0.00012,2]
[351264992,1738499443459,-6855.90067227,0.00012,2]
[351264993,1738499443470,-1359.61261136,0.00012,2]
[351264994,1738499443481,-8746.08535037,0.00012,2]
[351264995,1738499443492,-9888.20383686,0.00012,2]
[351264996,1738499443515,-52084.9341632,0.00012,2]
[351264997,1738499443526,-1435.74454154,0.00012,2]
[351264998,1738499443537,-773.2,0.00012,2]
[351264999,1738499443549,-117892.30537713,0.00012,2]
[351265000,1738499443561,-244253.14810068,0.00012,2]
[351265001,1738499443571,-119956.04936393,0.00012,2]
[351265002,1738499443584,-1132.58449139,0.00012,2]
[351265003,1738499443622,-467.7226,0.00012,2]
[351265004,1738499443634,-781.48736943,0.00012,2]
[351265005,1738499443647,-11116.34384161,0.00012,2]
[351265006,1738499443660,-310.000015,0.00012,2]
[351265008,1738499446147,-363.54427691,0.00012,2]
[351265009,1738499446205,-1000.0,0.00012,2]
[351265010,1738499446217,-1005621.99923522,0.00012,2]
[351265011,1738499446228,-263.21584521,0.00012,2]
[351265012,1738499446264,-5329.81460229,0.00012,2]
[351265013,1738499446275,-390.4107502,0.00012,2]
[351265014,1738499446324,-787.59380977,0.00012,2]
[351265015,1738499446336,-3639.43722542,0.00012,2]
[351265016,1738499446348,-512.14193356,0.00012,2]
[351265017,1738499446399,-346.81877916,0.00012,2]
[351265018,1738499446410,-16631.80540588,0.00012,2]
[351265019,1738499446421,-84262.14361795,0.00012,2]
[351265020,1738499446449,-6816.95829799,0.00012,2]
[351265024,1738499550915,150.0,0.00021186,120]
[351265026,1738499589927,500.0,0.00022694,120]
[351265027,1738499594670,500.0,0.00022969,120]
[351265028,1738499601048,200.0,0.00022969,120]
[351265029,1738499638407,1000.0,0.00023,120]
[351265030,1738499641355,1000.0,0.00023,120]
[351265031,1738499641950,1000.0,0.00023,120]
[351265032,1738499642980,1000.0,0.00023,120]
[351265033,1738499644327,1000.0,0.00023,120]
[351265036,1738499730768,150.0,0.00022768,120]
[351265037,1738499750856,-171.08,0.00010015,2]
[351265038,1738499750880,-150.0,0.00010999,2]
[351265039,1738499750904,-150.0,0.00010999,2]
[351265040,1738499750927,-236.99897414,0.00011045,2]
[351265041,1738499750952,-150.0,0.00011642,2]
[351265042,1738499761304,300.0,0.00011641,2]
[351265043,1738499859516,500.0,0.000116,4]
[351265044,1738499888973,267.77,0.00011292,2]
[351265045,1738499984858,159.96,0.00011405,2]
[351265046,1738500019988,168.66,0.00016658,30]
[351265047,1738500026107,1009.46,9.518e-05,2]
[351265050,1738500076803,1000.0,0.00011314,2]
[351265051,1738500090761,150.0,0.0002117,120]
[351265052,1738500137001,431.1858625,0.00011612,2]
[351265053,1738500137629,198.5995771,0.00011626,2]
[351265054,1738500191424,500.0,0.00022999,120]
[351265055,1738500196002,454.583559,0.00022063,120]
[351265056,1738500243747,28584.88375154,0.0001142,2]
[351265057,1738500270847,150.0,0.00021344,120]
[351265060,1738500330730,150.0,0.00021804,120]
[351265062,1738500427239,4200.07045397,0.00023,120]
[351265063,1738500428237,2463.12,0.00023,120]
[351265064,1738500431091,13307.37256754,0.00015012,24]
[351265065,1738500469787,170.89,8.865e-05,2]
[351265066,1738500570761,150.0,0.00022011,120]
[351265073,1738500632422,-151.92,0.00010137,2]
[351265074,1738500632432,-150.0,0.00010973,2]
[351265075,1738500632442,-150.0,0.00011151,2]
[351265076,1738500632452,-150.0,0.00011151,2]
[351265077,1738500632462,-886.45,0.0001116,2]
[351265078,1738500632472,-250.0,0.00011204,2]
[351265079,1738500632482,-165.22,0.00011214,2]
[351265080,1738500632492,-397.19915416,0.0001132,2]
[351265081,1738500632502,-23900.0,0.00011348,2]
[351265082,1738500632512,-4673.82624846,0.0001142,2]
[351265083,1738500632521,-700.0,0.000116,4]
[351265084,1738500632531,-431.1858626,0.00011682,2]
[351265085,1738500632541,-1500.0,0.000117,4]
[351265086,1738500632551,-150.0,0.00011753,2]
[351265087,1738500632562,-1009.46,0.00011782,2]
[351265088,1738500632572,-2200.0,0.000118,4]
[351265089,1738500632583,-500.0,0.0001189,2]
[351265090,1738500632592,-150.0,0.00011899,2]
[351265091,1738500632602,-165.29253016,0.000119,2]
[351265092,1738500632612,-3586.5408,0.000119,2]
[351265093,1738500632622,-3000.0,0.000119,4]
[351265094,1738500632631,-4399.82187044,0.000119,2]
[351265095,1738500632641,-300.9964335,0.000119,2]
[351265096,1738500632651,-500.0,0.00011973,2]
[351265097,1738500632660,-162.0550426,0.00011973,2]
[351265098,1738500632670,-505.79939031,0.00011973,2]
[351265099,1738500632680,-500.0,0.00011973,2]
[351265100,1738500632690,-161.28117644,0.00011973,2]
[351265101,1738500632699,-153.62389986,0.00011973,2]
[351265102,1738500632709,-151.23340109,0.00011973,2]
[351265103,1738500632719,-500.0,0.00011973,2]
[351265104,1738500632729,-500.0,0.00011999,2]
[351265105,1738500632739,-195.84761223,0.00011999,2]
[351265106,1738500632749,-226.11794083,0.00011999,2]
[351265107,1738500632759,-15547.90037832,0.00012,2]
[351265108,1738500632771,-49577.98047868,0.00012,2]
[351265109,1738500633012,-29851.11592394,0.00012,2]
[351265110,1738500633024,-36439.51110251,0.00012,2]
[351265111,1738500636202,-1997.21734795,0.00012,2]
[351265112,1738500636262,-712.02367317,0.00012,2]
[351265113,1738500636274,-14524.35378392,0.00012,2]
[351265114,1738500636416,-12622.44789653,0.00012,2]
[351265115,1738500636427,-883.32813312,0.00012,2]
[351265116,1738500636440,-2352.50146774,0.00012,2]
[351265117,1738500636466,-21264.46499744,0.00012,2]
[351265118,1738500636477,-354.92370002,0.00012,2]
[351265119,1738500636488,-2160.35970002,0.00012,2]
[351265120,1738500636499,-986.0,0.00012,2]
[351265121,1738500636519,-537.44719657,0.00012,2]
[351265122,1738500636531,-615.53079903,0.00012,2]
[351265123,1738500636543,-1121.54628536,0.00012,2]
[351265124,1738500636553,-317.805,0.00012,2]
[351265125,1738500636564,-274.7353825,0.00012,2]
[351265127,1738500636575,-374.9086065,0.00012,2]
[351265129,1738500636587,-267.861,0.00012,2]
[351265132,1738500636599,-315.94700004,0.00012,2]
[351265133,1738500636610,-691.49400045,0.00012,2]
[351265134,1738500636621,-284.4865955,0.00012,2]
[351265136,1738500636632,-293.998,0.00012,2]
[351265138,1738500636643,-308.0963464,0.00012,2]
[351265140,1738500636654,-526.93726715,0.00012,2]
[351265142,1738500636665,-292.13799996,0.00012,2]
[351265144,1738500636676,-288.945,0.00012,2]
[351265147,1738500636687,-263.77,0.00012,2]
[351265149,1738500636699,-342.94286978,0.00012,2]
[351265152,1738500636721,-649.70746256,0.00012,2]
[351265165,1738500638600,-2760.26779584,0.0001116,2]
[351265166,1738500638612,-30549.67036944,0.0001116,2]
[351265167,1738500638622,-209731.26003056,0.00012,2]
[351265168,1738500638639,-221510.32080053,0.00012,2]
[351265169,1738500638649,-9553.154996,0.00012,2]
[351265170,1738500638660,-9084.2900005,0.00012,2]
[351265171,1738500638672,-13724.235,0.00012,2]
[351265172,1738500638683,-1384.75,0.00012,2]
[351265173,1738500638694,-1886.70249696,0.00012,2]
[351265174,1738500638705,-532.144093,0.00012,2]
[351265175,1738500638716,-1199.76749793,0.00012,2]
[351265177,1738500638727,-3333.0568282,0.00012,2]
[351265180,1738500638744,-13880.32317,0.00012,2]
[351265183,1738500638772,-988.835,0.00012,2]
[351265185,1738500638784,-58963.70741992,0.00012,2]
[351265246,1738500640337,-32323.12756008,0.00012,2]
[351265248,1738500640349,-1490.00240435,0.00012,2]
[351265249,1738500640512,-11186.21768769,0.00012,2]
[351265250,1738500640523,-716.33181701,0.00012,2]
[351265251,1738500640535,-98600.0,0.00012,2]
[351265252,1738500640547,-19801.94538293,0.00012,2]
[351265253,1738500640610,-131505.63974649,0.00012,2]
[351265254,1738500640713,-23715.66992787,0.00012,2]
[351265255,1738500640724,-5944.48,0.00012,2]
[351265256,1738500640770,-9088.69734053,0.00012,2]
[351265257,1738500640781,-3098.679664,0.00012,2]
[351265258,1738500640791,-777.3478708,0.00012,2]
[351265259,1738500640802,-932.29928033,0.00012,2]
[351265260,1738500640816,-783.988005,0.00012,2]
[351265261,1738500640827,-515.96,0.00012,2]
[351265262,1738500640841,-3049.2,0.00012,2]
[351265271,1738500641668,-625.42636932,0.00012,2]
[351265272,1738500641725,-989.31847479,0.00012,2]
[351265273,1738500641797,-613.26964207,0.00012,2]
[351265287,1738500643460,-1599.69617471,0.00012,2]
[351265293,1738500643573,-66283.01432042,0.00012,2]
[351265294,1738500643587,-153265.98752921,0.00012,2]
[351265295,1738500643599,-622.154993,0.00012,2]
[351265296,1738500643611,-2987.80926983,0.00012,2]
[351265297,1738500643637,-36881.9709311,0.00012,2]
[351265298,1738500643649,-8880.41721204,0.00012,2]
[351265299,1738500643692,-308.400007,0.00012,2]
[351265306,1738500644089,-306477.46712397,0.00012,2]
[351265307,1738500644107,-7635.25000001,0.00012,2]
[351265317,1738500646339,-995.67577419,0.00012,2]
[351265319,1738500646352,-791.5100208,0.00012,2]
[351265321,1738500646413,-49250.0,0.00012,2]
[351265322,1738500646457,-429.52322016,0.00012,2]
[351265323,1738500646520,-12054.56199998,0.00012,2]
[351265324,1738500646532,-1680.6682659,0.00012,2]
[351265325,1738500646543,-885.06968557,0.00012,2]
[351265326,1738500646587,-1843.65503833,0.00012,2]
[351265327,1738500646646,-420.4240141,0.00012,2]
[351265328,1738500646706,-348.547565,0.00012,2]
[351265329,1738500646718,-2761.43772126,0.00012,2]
[351265333,1738500790206,500.0,0.00022999,120]
[351265334,1738500801882,200.0,0.00022999,120]
[351265335,1738500884402,1146.05,9.347e-05,2]
[351265336,1738500892649,168.66,0.00016658,30]
[351265340,1738501050787,150.0,0.00021045,120]
[351265341,1738501208620,427.14,0.00010906,7]
[351265342,1738501317829,170.89,8.577e-05,2]
[351265343,1738501350798,150.0,0.00021693,120]
[351265345,1738501391401,500.0,0.00022999,120]
[351265346,1738501402827,200.0,0.00022999,120]
[351265347,1738501410783,150.0,0.00022446,120]
[351265348,1738501415796,293.702441,0.00023,120]
[351265349,1738501470784,150.0,0.00022049,120]
[351265352,1738501752108,-200.0,0.00010104,2]
[351265353,1738501752127,-1500.0,0.00010111,2]
[351265354,1738501752148,-159.96,0.00010116,2]
[351265355,1738501752168,-2793.875074,0.00010122,2]
[351265364,1738501831501,-268.90730465,0.00010016,2]
[351265365,1738501831517,-617.57829535,0.00010086,2]
[351265366,1738501831535,-382.42170465,0.00010086,2]
[351265367,1738501831551,-1462.794926,0.00010122,2]
[351265368,1738501831566,-1810.59,0.00010122,2]
[351265369,1738501831581,-9897.63606752,0.00010127,2]
[351265370,1738501831596,-1210.88598857,0.00010127,2]
[351265371,1738501831639,-305.98,0.00010127,2]
[351265372,1738501831656,-225.93401143,0.00010127,2]
[351265373,1738501831671,-192.82,0.00010137,2]
[351265374,1738501831687,-59.56187243,0.00010138,2]
[351265375,1738501831727,-481.44812757,0.00010138,2]
[351265376,1738501831743,-268.90730464,0.00010456,2]
[351265377,1738501831759,-523.3,0.00010578,2]
[351265378,1738501831773,-523.3,0.00010581,2]
[351265379,1738501831788,-523.3,0.00010583,2]
[351265380,1738501831803,-523.3,0.00010586,2]
[351265381,1738501831819,-300.0,0.00010588,2]
[351265382,1738501831833,-523.3,0.00010589,2]
[351265383,1738501831849,-523.3,0.00010592,2]
[351265384,1738501831864,-523.3,0.00010595,2]
[351265385,1738501831880,-523.3,0.00010597,2]
[351265386,1738501831894,-523.3,0.000106,2]
[351265387,1738501831909,-523.3,0.00010603,2]
[351265388,1738501831924,-523.3,0.00010606,2]
[351265389,1738501831939,-523.3,0.00010609,2]
[351265390,1738501831954,-523.3,0.00010611,2]
[351265391,1738501831969,-523.3,0.00010614,2]
[351265392,1738501831984,-523.3,0.00010617,2]
[351265393,1738501831998,-523.3,0.0001062,2]
[351265394,1738501832013,-150.0,0.00010622,2]
[351265395,1738501832028,-523.3,0.00010622,2]
[351265396,1738501832044,-523.3,0.00010625,2]
[351265397,1738501832059,-523.3,0.00010628,2]
[351265398,1738501832074,-523.3,0.00010631,2]
[351265401,1738501832090,-250.0,0.000107,2]
[351265404,1738501832105,-596.27,0.00010731,2]
[351265406,1738501832120,-150.29,0.00010789,2]
[351265409,1738501832135,-268.90730464,0.00010895,2]
[351265411,1738501832151,-1299.09,0.00010907,2]
[351265414,1738501832166,-23900.0,0.00010907,2]
[351265416,1738501832180,-6332.43,0.00010995,2]
[351265417,1738501832194,-150.0,0.00011018,2]
[351265418,1738501832209,-165.22,0.00011032,2]
[351265419,1738501832469,-176.65,0.00011079,2]
[351265420,1738501832509,-150.0,0.00011114,2]
[351265421,1738501832519,-150.0,0.00011134,2]
[351265422,1738501832529,-2000.0,0.00011189,2]
[351265423,1738501832538,-300.0,0.00011189,2]
[351265424,1738501832547,-1090.78,0.00011281,2]
[351265425,1738501832557,-1000.0,0.00011346,2]
[351265426,1738501832567,-941.27,0.00011463,2]
[351265427,1738501832576,-150.0,0.00011464,2]
[351265428,1738501832586,-300.0,0.000115,4]
[351265429,1738501832595,-700.0,0.000116,4]
[351265430,1738501832605,-1146.05,0.00011611,2]
[351265431,1738501832615,-420.0,0.0001164,2]
[351265432,1738501832625,-255.0,0.00011653,2]
[351265433,1738501832646,-500.0,0.00011671,2]